Workbook

Sheet Análise de Lucratividade
B2: Análise de Lucratividade do Cliente
B3: 20 DE JANEIRO DE 2013 | D3: NOME DA EMPRESA
B6: Atividade do cliente | C6: Cliente 1 | D6: Cliente 2 | E6: Cliente 3 | F6: Geral
B7: Número de clientes ativos - começo do período | C7: 5 | D7: 8 | E7: 8 | F7: =SUM(C7:E7) -> 21
B8: Número de clientes adicionados | C8: 2 | D8: 4 | E8: 4 | F8: =SUM(C8:E8) -> 10
B9: Número de clientes perdidos/finalizados | C9: -1 | D9: -2 | E9: -2 | F9: -5
B10: Número de clientes atvos - fim do período | C10: =SUBTOTAL(109,'Análise de Lucratividade'!$C$7:$C$9) -> 6 | D10: =SUBTOTAL(109,'Análise de Lucratividade'!$D$7:$D$9) -> 10 | E10: =SUBTOTAL(109,'Análise de Lucratividade'!$E$7:$E$9) -> 10 | F10: 26
B12: Análise de Lucratividade
B13: Receita por segmento | C13: R$ 1,500,000 | D13: R$ 1,800,000 | E13: R$ 2,500,000 | F13: =SUM('Análise de Lucratividade'!$C13:$E13) -> R$ 5,800,000
B14: Peso | C14: =C13/$F$13 -> 25.9% | D14: =D13/$F$13 -> 31.0% | E14: 43.1% | F14: =SUM(C14:E14) -> 100.0%
B16: Custo das Vendas
B17: Custos contínuos de serviço e suporte | C17: R$ 1,000,000 | D17: R$ 1,400,000 | E17: R$ 1,400,000 | F17: =SUM('Análise de Lucratividade'!$C17:$E17) -> R$ 3,800,000
B18: Outros custos diretos do cliente | C18: 200,000 | D18: 100,000 | E18: 100,000 | F18: =SUM('Análise de Lucratividade'!$C18:$E18) -> 400,000
B19: Total do custo das vendas | C19: =SUBTOTAL(109,'Análise de Lucratividade'!$C$17:$C$18) -> 1,200,000 | D19: =SUBTOTAL(109,'Análise de Lucratividade'!$D$17:$D$18) -> 1,500,000 | E19: =SUBTOTAL(109,'Análise de Lucratividade'!$E$17:$E$18) -> 1,500,000 | F19: =SUBTOTAL(109,'Análise de Lucratividade'!$F$17:$F$18) -> 4,200,000
B20: Margem bruta | C20: =C13-'Análise de Lucratividade'!$C$19 -> R$ 300,000 | D20: =D13-'Análise de Lucratividade'!$D$19 -> R$ 300,000 | E20: =E13-'Análise de Lucratividade'!$E$19 -> R$ 1,000,000 | F20: =F13-'Análise de Lucratividade'!$F$19 -> R$ 1,600,000
B21: Peso | C21: =MAX(0,MIN(1,C20/$F$20)) -> 18.8% | D21: =MAX(0,MIN(1,D20/$F$20)) -> 18.8% | E21: 62.5% | F21: =SUM('Análise de Lucratividade'!$C21:$E21) -> 100.0%
B23: Outros Custos
B24: Aquisição do cliente | C24: R$ 105,000 | D24: R$ 120,000 | E24: R$ 235,000 | F24: =SUM('Análise de Lucratividade'!$C24:$E24) -> R$ 460,000
B25: Marketing para o cliente | C25: 150,000 | D25: 125,000 | E25: 275,000 | F25: =SUM('Análise de Lucratividade'!$C25:$E25) -> R$ 550,000
B26: Finalização do cliente | C26: 80,000 | D26: 190,000 | E26: 140,000 | F26: =SUM('Análise de Lucratividade'!$C26:$E26) -> R$ 410,000
B27: Total de outros custos do cliente | C27: =SUBTOTAL(109,'Análise de Lucratividade'!$C$24:$C$26) -> 335,000 | D27: =SUBTOTAL(109,'Análise de Lucratividade'!$D$24:$D$26) -> 435,000 | E27: =SUBTOTAL(109,'Análise de Lucratividade'!$E$24:$E$26) -> 650,000 | F27: =SUBTOTAL(109,'Análise de Lucratividade'!$F$24:$F$26) -> 1,420,000
B29: Lucro do cliente por segmento | C29: =C20-C27 -> -R$ 35,000 | D29: =D20-D27 -> -R$ 135,000 | E29: =E20-E27 -> R$ 350,000 | F29: =F20-'Análise de Lucratividade'!$F$27 -> R$ 180,000
B30: Peso | C30: =MAX(0,MIN(1,C29/$F$29)) -> 0.0% | D30: =MAX(0,MIN(1,D29/$F$29)) -> 0.0% | E30: 100.0% | F30: =SUM('Análise de Lucratividade'!$C30:$E30) -> 100.0%
B32: Métricas de Resumo
B33: Custo médio por cliente adquirido | C33: =C24/C8 -> R$ 52,500 | D33: =D24/D8 -> R$ 30,000 | E33: =E24/E8 -> R$ 58,750
B34: Custo médio por cliente finalizado | C34: =-C26/C9 -> R$ 80,000 | D34: =-D26/D9 -> R$ 95,000 | E34: =-E26/E9 -> R$ 70,000
B35: Custo médio de marketing por cliente ativo | C35: =C25/'Análise de Lucratividade'!$C$10 -> R$ 25,000 | D35: =D25/'Análise de Lucratividade'!$D$10 -> R$ 12,500 | E35: =E25/'Análise de Lucratividade'!$E$10 -> R$ 27,500
B36: Lucro ou prejuízo médio por cliente | C36: =C29/'Análise de Lucratividade'!$C$10 -> -R$ 5,833.33 | D36: =D29/'Análise de Lucratividade'!$D$10 -> -R$ 13,500.00 | E36: =E29/'Análise de Lucratividade'!$E$10 -> R$ 35,000.00

Sheet Gráfico de Métricas de Resumo
B2: Métricas de Resumo por Cliente
B3: =DataRelatório -> 20 DE JANEIRO DE 2013 | R3: =NomeEmpresa -> NOME DA EMPRESA
